fUST/lending_fUST_20240916
["ID","MTS","AMOUNT","RATE_DAILY","PERIOD"]
[338318536,1726494654878,-3971.32,0.00019452,2]
[338318537,1726494654887,-746.96,0.00019452,2]
[338318538,1726494654896,-583.0,0.00019452,2]
[338318539,1726494654905,-500.0,0.00019452,2]
[338318540,1726494654914,-580.62,0.00019452,2]
[338318541,1726494654923,-500.0,0.00019452,2]
[338318542,1726494654933,-500.0,0.00019452,2]
[338318543,1726494654942,-500.0,0.00019452,2]
[338318544,1726494654951,-500.0,0.00019452,2]
[338318545,1726494654960,-500.0,0.00019452,2]
[338318546,1726494654969,-557.58,0.00019452,2]
[338318547,1726494654978,-500.0,0.00019452,2]
[338318548,1726494654987,-500.0,0.00019452,2]
[338318549,1726494654997,-507.06739586,0.00019452,2]
[338318550,1726494655007,-500.0,0.00019452,2]
[338318551,1726494655016,-914.01,0.00019452,2]
[338318552,1726494655025,-511.77391648,0.00019452,2]
[338318553,1726494655034,-500.0,0.00019452,2]
[338318554,1726494655043,-500.0,0.00019452,2]
[338318555,1726494655053,-500.0,0.00019452,2]
[338318556,1726494655062,-739.37,0.00019452,2]
[338318557,1726494655075,-500.0,0.00019452,2]
[338318558,1726494655084,-3479.2,0.00019452,2]
[338318559,1726494655094,-500.0,0.00019452,2]
[338318560,1726494655106,-151.0,0.00019452,2]
[338318561,1726494655115,-151.0,0.00019452,2]
[338318562,1726494655125,-151.0,0.00019452,2]
[338318563,1726494655135,-209.962383,0.00019452,2]
[338318564,1726494655144,-672.26,0.00019452,2]
[338318565,1726494655153,-500.0,0.00019452,2]
[338318566,1726494655162,-500.0,0.00019452,2]
[338318567,1726494655171,-500.0,0.00019452,2]
[338318568,1726494655181,-500.0,0.00019452,2]
[338318569,1726494655190,-1314.98,0.00019452,2]
[338318570,1726494655199,-500.0,0.00019452,2]
[338318571,1726494655209,-500.0,0.00019452,2]
[338318572,1726494655218,-1000.17,0.00019452,2]
[338318573,1726494655228,-500.0,0.00019452,2]
[338318574,1726494655237,-746.19,0.00019452,2]
[338318575,1726494655246,-1665.86,0.00019452,2]
[338318576,1726494655256,-500.0,0.00019452,2]
[338318577,1726494655265,-500.0,0.00019452,2]
[338318578,1726494655274,-500.0,0.00019452,2]
[338318579,1726494655283,-500.0,0.00019452,2]
[338318580,1726494655293,-599.45,0.00019452,2]
[338318581,1726494655302,-151.0,0.00019452,2]
[338318582,1726494655311,-1760.21,0.00019452,2]
[338318583,1726494655322,-1234.36,0.00019452,2]
[338318584,1726494655331,-1406.88,0.00019452,2]
[338318585,1726494655340,-500.0,0.00019452,2]
[338318586,1726494655350,-1608.62,0.00019452,2]
[338318587,1726494655359,-500.0,0.00019452,2]
[338318588,1726494655369,-500.0,0.00019452,2]
[338318589,1726494655378,-629.68057701,0.00019452,2]
[338318590,1726494655387,-830.15,0.00019452,2]
[338318591,1726494655396,-500.0,0.00019452,2]
[338318592,1726494655406,-500.0,0.00019452,2]
[338318593,1726494655415,-5299.44,0.00019452,2]
[338318594,1726494655424,-500.0,0.00019452,2]
[338318595,1726494655433,-3757.22,0.00019452,2]
[338318596,1726494655442,-1249.62,0.00019452,2]
[338318597,1726494655452,-671.45,0.00019452,2]
[338318598,1726494655461,-904.52,0.00019452,2]
[338318599,1726494655471,-853.47,0.00019452,2]
[338318600,1726494655481,-192.5207962,0.00019452,2]
[338318601,1726494655490,-500.0,0.00019452,2]
[338318602,1726494655499,-500.0,0.00019452,2]
[338318603,1726494655508,-151.0,0.00019452,2]
[338318604,1726494655518,-638.77,0.00019452,2]
[338318605,1726494655527,-500.0,0.00019452,2]
[338318606,1726494655537,-500.0,0.00019452,2]
[338318607,1726494655547,-1690.04,0.00019452,2]
[338318608,1726494655557,-500.0,0.00019452,2]
[338318609,1726494655568,-2331.93,0.00019452,2]
[338318610,1726494655577,-1476.06,0.00019452,2]
[338318611,1726494655586,-500.0,0.00019452,2]
[338318612,1726494655595,-2225.75,0.00019452,2]
[338318613,1726494655604,-500.0,0.00019452,2]
[338318614,1726494655613,-500.0,0.00019452,2]
[338318615,1726494655622,-1392.1,0.00019452,2]
[338318616,1726494655632,-529.74,0.00019452,2]
[338318617,1726494655641,-200.0,0.00019452,2]
[338318618,1726494655650,-309.438549,0.00019452,2]
[338318619,1726494655660,-528.9,0.00019452,2]
[338318620,1726494655669,-4699.41,0.00019452,2]
[338318621,1726494655678,-309.438549,0.00019452,2]
[338318622,1726494655687,-500.0,0.00019452,2]
[338318623,1726494655697,-309.438549,0.00019452,2]
[338318624,1726494655706,-626.9119367,0.00019452,2]
[338318625,1726494655716,-309.438549,0.00019452,2]
[338318626,1726494655725,-309.438549,0.00019452,2]
[338318627,1726494655734,-500.0,0.00019452,2]
[338318628,1726494655744,-309.438549,0.00019452,2]
[338318629,1726494655753,-309.438549,0.00019452,2]
[338318630,1726494655763,-500.0,0.00019452,2]
[338318631,1726494655773,-309.438549,0.00019452,2]
[338318632,1726494655782,-309.438549,0.00019452,2]
[338318633,1726494655791,-309.438549,0.00019452,2]
[338318634,1726494655800,-500.0,0.00019452,2]
[338318635,1726494655809,-500.0,0.00019452,2]
[338318636,1726494655820,-820.21,0.00019452,2]
[338318637,1726494655830,-1486.21,0.00019452,2]
[338318638,1726494655839,-500.0,0.00019452,2]
[338318639,1726494655849,-1421.46,0.00019452,2]
[338318640,1726494655858,-542.18,0.00019452,2]
[338318641,1726494655867,-534.69,0.00019452,2]
[338318642,1726494655876,-500.0,0.00019452,2]
[338318643,1726494655886,-500.0,0.00019452,2]
[338318644,1726494655895,-151.0,0.00019452,2]
[338318645,1726494655905,-151.0,0.00019452,2]
[338318646,1726494655914,-151.0,0.00019452,2]
[338318647,1726494655923,-151.0,0.00019452,2]
[338318648,1726494655933,-743.4,0.00019452,2]
[338318649,1726494655942,-500.0,0.00019452,2]
[338318650,1726494655952,-151.0,0.00019452,2]
[338318651,1726494655961,-500.0,0.00019452,2]
[338318652,1726494655970,-151.0,0.00019452,2]
[338318653,1726494655980,-500.0,0.00019452,2]
[338318654,1726494655992,-547.44,0.00019452,2]
[338318655,1726494656001,-500.0,0.00019452,2]
[338318656,1726494656011,-151.0,0.00019452,2]
[338318657,1726494656021,-151.0,0.00019452,2]
[338318658,1726494656031,-165.678955,0.00019452,2]
[338318659,1726494656040,-536.54620541,0.00019452,2]
[338318660,1726494656050,-500.0,0.00019452,2]
[338318661,1726494656059,-6427.05,0.00019452,2]
[338318662,1726494656070,-193.02491981,0.00019452,2]
[338318663,1726494656080,-500.0,0.00019452,2]
[338318664,1726494656090,-500.0,0.00019452,2]
[338318665,1726494656101,-1582.62,0.00019452,2]
[338318666,1726494656113,-500.0,0.00019452,2]
[338318667,1726494656123,-1000.39,0.00019452,2]
[338318668,1726494656132,-60669.11,0.00019452,2]
[338318669,1726494656142,-500.0,0.00019452,2]
[338318670,1726494656152,-500.0,0.00019452,2]
[338318671,1726494656162,-500.0,0.00019452,2]
[338318672,1726494656172,-1393.65,0.00019452,2]
[338318673,1726494656183,-681.04,0.00019452,2]
[338318674,1726494656192,-500.0,0.00019452,2]
[338318675,1726494656203,-500.0,0.00019452,2]
[338318676,1726494656212,-296.03833701,0.00019452,2]
[338318677,1726494656222,-2021.66,0.00019452,2]
[338318678,1726494656232,-1386.71,0.00019452,2]
[338318679,1726494656241,-246.93040501,0.00019452,2]
[338318680,1726494656251,-500.0,0.00019452,2]
[338318681,1726494656261,-7706.77,0.00019452,2]
[338318682,1726494656271,-958.35,0.00019452,2]
[338318683,1726494656282,-500.0,0.00019452,2]
[338318684,1726494656293,-500.0,0.00019452,2]
[338318685,1726494656302,-1040.18,0.00019452,2]
[338318686,1726494656312,-151.0,0.00019452,2]
[338318687,1726494656324,-151.0,0.00019452,2]
[338318688,1726494656334,-151.0,0.00019452,2]
[338318689,1726494656343,-500.0,0.00019452,2]
[338318690,1726494656354,-151.0,0.00019452,2]
[338318691,1726494656364,-4536.41,0.00019452,2]
[338318692,1726494656373,-3774.11,0.00019452,2]
[338318693,1726494656383,-500.0,0.00019452,2]
[338318694,1726494656393,-500.0,0.00019452,2]
[338318695,1726494656403,-5481.64,0.00019452,2]
[338318696,1726494656412,-500.0,0.00019452,2]
[338318697,1726494656422,-1665.99,0.00019452,2]
[338318698,1726494656432,-500.0,0.00019452,2]
[338318699,1726494656441,-500.0,0.00019452,2]
[338318700,1726494656451,-500.0,0.00019452,2]
[338318701,1726494656460,-2238.28,0.00019452,2]
[338318702,1726494656470,-500.0,0.00019452,2]
[338318703,1726494656479,-500.0,0.00019452,2]
[338318704,1726494656488,-500.0,0.00019452,2]
[338318705,1726494656498,-604.13,0.00019452,2]
[338318706,1726494656507,-500.0,0.00019452,2]
[338318707,1726494656516,-500.93809778,0.00019452,2]
[338318708,1726494656526,-500.0,0.00019452,2]
[338318709,1726494656535,-585.62337848,0.00019452,2]
[338318710,1726494656544,-500.0,0.00019452,2]
[338318711,1726494656554,-203.27851639,0.00019452,2]
[338318712,1726494656564,-500.0,0.00019452,2]
[338318713,1726494656584,-500.0,0.00019452,2]
[338318714,1726494656594,-500.0,0.00019452,2]
[338318715,1726494656603,-500.0,0.00019452,2]
[338318716,1726494656612,-198.78,0.00019452,2]
[338318717,1726494656621,-500.0,0.00019452,2]
[338318718,1726494656630,-500.0,0.00019452,2]
[338318719,1726494656639,-5726.11,0.00019452,2]
[338318720,1726494656648,-984.96,0.00019452,2]
[338318721,1726494656658,-500.0,0.00019452,2]
[338318722,1726494656667,-500.0,0.00019452,2]
[338318723,1726494656677,-500.0,0.00019452,2]
[338318724,1726494656686,-1989.45,0.00019452,2]
[338318725,1726494656695,-500.0,0.00019452,2]
[338318726,1726494656704,-500.0,0.00019452,2]
[338318727,1726494656714,-500.0,0.00019452,2]
[338318728,1726494656724,-500.0,0.00019452,2]
[338318729,1726494656734,-502.99622555,0.00019452,2]
[338318730,1726494656743,-585.71,0.00019452,2]
[338318731,1726494656753,-500.0,0.00019452,2]
[338318732,1726494656763,-500.0,0.00019452,2]
[338318733,1726494656773,-500.0,0.00019452,2]
[338318734,1726494656783,-500.0,0.00019452,2]
[338318735,1726494656792,-533.52,0.00019452,2]
[338318736,1726494656802,-500.0,0.00019452,2]
[338318737,1726494656812,-500.0,0.00019452,2]
[338318738,1726494656831,-499.49205537,0.00019452,2]
[338318739,1726494656841,-500.0,0.00019452,2]
[338318740,1726494656850,-500.0,0.00019452,2]
[338318741,1726494656859,-503.28161975,0.00019452,2]
[338318742,1726494656868,-500.0,0.00019452,2]
[338318743,1726494656878,-500.0,0.00019452,2]
[338318744,1726494656887,-500.0,0.00019452,2]
[338318745,1726494656897,-3134.02,0.00019452,2]
[338318746,1726494656907,-648.72,0.00019452,2]
[338318747,1726494656917,-994.05,0.00019452,2]
[338318748,1726494656926,-500.0,0.00019452,2]
[338318749,1726494656935,-500.0,0.00019452,2]
[338318750,1726494656945,-151.0,0.00019452,2]
[338318751,1726494656955,-151.0,0.00019452,2]
[338318752,1726494656964,-151.0,0.00019452,2]
[338318753,1726494656974,-151.0,0.00019452,2]
[338318754,1726494656984,-151.0,0.00019452,2]
[338318755,1726494656994,-4764.17,0.00019452,2]
[338318756,1726494657004,-151.0,0.00019452,2]
[338318757,1726494657013,-211.92649,0.00019452,2]
[338318758,1726494657023,-151.0,0.00019452,2]
[338318759,1726494657033,-211.92649,0.00019452,2]
[338318760,1726494657042,-151.0,0.00019452,2]
[338318761,1726494657052,-211.92649,0.00019452,2]
[338318762,1726494657061,-500.0,0.00019452,2]
[338318763,1726494657074,-211.92649,0.00019452,2]
[338318764,1726494657084,-196.62552816,0.00019452,2]
[338318765,1726494657094,-500.0,0.00019452,2]
[338318766,1726494657104,-500.0,0.00019452,2]
[338318767,1726494657114,-211.92649,0.00019452,2]
[338318768,1726494657123,-500.0,0.00019452,2]
[338318769,1726494657133,-211.92649,0.00019452,2]
[338318770,1726494657142,-211.92649,0.00019452,2]
[338318771,1726494657152,-211.92649,0.00019452,2]
[338318772,1726494657161,-2363.85,0.00019452,2]
[338318773,1726494657171,-500.0,0.00019452,2]
[338318774,1726494657180,-671.58,0.00019452,2]
[338318775,1726494657190,-500.0,0.00019452,2]
[338318776,1726494657200,-500.0,0.00019452,2]
[338318777,1726494657209,-13114.86,0.00019452,2]
[338318778,1726494657219,-551.94,0.00019452,2]
[338318779,1726494657229,-500.0,0.00019452,2]
[338318780,1726494657239,-500.0,0.00019452,2]
[338318781,1726494657248,-151.0,0.00019452,2]
[338318782,1726494657258,-1470.35,0.00019452,2]
[338318783,1726494657267,-151.0,0.00019452,2]
[338318784,1726494657277,-2345.74,0.00019452,2]
[338318785,1726494657287,-274.743946,0.00019452,2]
[338318786,1726494657296,-500.0,0.00019452,2]
[338318787,1726494657306,-294.92487963,0.00019452,2]
[338318788,1726494657316,-500.0,0.00019452,2]
[338318789,1726494657330,-833.3,0.00019452,2]
[338318790,1726494657339,-507.06,0.00019452,2]
[338318791,1726494657350,-500.0,0.00019452,2]
[338318792,1726494657360,-500.0,0.00019452,2]
[338318793,1726494657369,-500.0,0.00019452,2]
[338318794,1726494657379,-621.76,0.00019452,2]
[338318795,1726494657389,-500.0,0.00019452,2]
[338318796,1726494657399,-1960.88,0.00019452,2]
[338318797,1726494657409,-2691.06,0.00019452,2]
[338318798,1726494657419,-500.0,0.00019452,2]
[338318799,1726494657429,-500.0,0.00019452,2]
[338318800,1726494657439,-500.0,0.00019452,2]
[338318801,1726494657449,-500.0,0.00019452,2]
[338318802,1726494657458,-2320.44,0.00019452,2]
[338318803,1726494657468,-8843.46,0.00019452,2]
[338318804,1726494657477,-1126.38,0.00019452,2]
[338318805,1726494657486,-500.0,0.00019452,2]
[338318806,1726494657496,-704.57,0.00019452,2]
[338318807,1726494657505,-23538.05,0.00019452,2]
[338318808,1726494657515,-596.57601201,0.00019452,2]
[338318809,1726494657525,-500.0,0.00019452,2]
[338318810,1726494657535,-151.0,0.00019452,2]
[338318811,1726494657546,-500.0,0.00019452,2]
[338318812,1726494657555,-151.0,0.00019452,2]
[338318813,1726494657565,-596.99970919,0.00019452,2]
[338318814,1726494657575,-151.0,0.00019452,2]
[338318815,1726494657585,-248.985932,0.00019452,2]
[338318816,1726494657594,-151.0,0.00019452,2]
[338318817,1726494657768,-248.985932,0.00019452,2]
[338318818,1726494657779,-248.985932,0.00019452,2]
[338318819,1726494657790,-248.985932,0.00019452,2]
[338318820,1726494657800,-151.0,0.00019452,2]
[338318821,1726494657810,-1027.19,0.00019452,2]
[338318822,1726494657823,-500.0,0.00019452,2]
[338318823,1726494657833,-224.096902,0.00019452,2]
[338318824,1726494657843,-500.0,0.00019452,2]
[338318825,1726494657854,-588.31,0.00019452,2]
[338318826,1726494657864,-1425.76,0.00019452,2]
[338318827,1726494657874,-921.13,0.00019452,2]
[338318828,1726494657885,-248.985932,0.00019452,2]
[338318829,1726494657895,-248.985932,0.00019452,2]
[338318830,1726494657907,-248.985932,0.00019452,2]
[338318831,1726494657917,-248.985932,0.00019452,2]
[338318832,1726494657927,-2563.51,0.00019452,2]
[338318833,1726494657937,-500.0,0.00019452,2]
[338318834,1726494657948,-1506.76,0.00019452,2]
[338318835,1726494657958,-500.0,0.00019452,2]
[338318836,1726494657968,-500.0,0.00019452,2]
[338318837,1726494657977,-500.0,0.00019452,2]
[338318838,1726494657987,-119443.2,0.00019452,2]
[338318839,1726494657997,-1794.94,0.00019452,2]
[338318840,1726494658008,-1631.47,0.00019452,2]
[338318841,1726494658017,-401.81800853,0.00019452,2]
[338318842,1726494658027,-3415.72,0.00019452,2]
[338318843,1726494658038,-513.77,0.00019452,2]
[338318844,1726494658048,-506.13,0.00019452,2]
[338318845,1726494658058,-500.0,0.00019452,2]
[338318846,1726494658069,-500.0,0.00019452,2]
[338318847,1726494658080,-750.12,0.00019452,2]
[338318848,1726494658090,-1260.21,0.00019452,2]
[338318849,1726494658101,-500.0,0.00019452,2]
[338318850,1726494658113,-500.0,0.00019452,2]
[338318851,1726494658123,-662.89,0.00019452,2]
[338318852,1726494658133,-4023.26,0.00019452,2]
[338318853,1726494658143,-683.81,0.00019452,2]
[338318854,1726494658153,-500.0,0.00019452,2]
[338318855,1726494658164,-500.0,0.00019452,2]
[338318856,1726494658174,-580.14,0.00019452,2]
[338318857,1726494658185,-500.0,0.00019452,2]
[338318858,1726494658196,-996.49,0.00019452,2]
[338318859,1726494658207,-500.0,0.00019452,2]
[338318860,1726494658217,-500.0,0.00019452,2]
[338318861,1726494658227,-2406.07,0.00019452,2]
[338318862,1726494658243,-151.0,0.00019452,2]
[338318863,1726494658253,-151.0,0.00019452,2]
[338318864,1726494658262,-500.0,0.00019452,2]
[338318865,1726494658272,-740.73,0.00019452,2]
[338318866,1726494658282,-500.0,0.00019452,2]
[338318867,1726494658292,-500.0,0.00019452,2]
[338318868,1726494658301,-1194.37,0.00019452,2]
[338318869,1726494658310,-48877.98,0.00019452,2]
[338318870,1726494658321,-3429.01,0.00019452,2]
[338318871,1726494658331,-1123.9,0.00019452,2]
[338318872,1726494658341,-151.0,0.00019452,2]
[338318873,1726494658350,-500.0,0.00019452,2]
[338318874,1726494658360,-251.327318,0.00019452,2]
[338318875,1726494658369,-553.15,0.00019452,2]
[338318876,1726494658379,-500.0,0.00019452,2]
[338318877,1726494658388,-501.57513495,0.00019452,2]
[338318878,1726494658397,-500.0,0.00019452,2]
[338318879,1726494658406,-500.0,0.00019452,2]
[338318880,1726494658416,-500.0,0.00019452,2]
[338318881,1726494658426,-500.0,0.00019452,2]
[338318882,1726494658436,-857.41,0.00019452,2]
[338318883,1726494658446,-500.0,0.00019452,2]
[338318884,1726494658456,-596.27396343,0.00019452,2]
[338318885,1726494658466,-646.81023011,0.00019452,2]
[338318886,1726494658475,-1035.47,0.00019452,2]
[338318887,1726494658485,-2578.57,0.00019452,2]
[338318888,1726494658494,-283.82551784,0.00019452,2]
[338318889,1726494658504,-500.0,0.00019473,2]
[338318890,1726494658513,-500.0,0.00019473,2]
[338318891,1726494658523,-500.0,0.00019473,2]
[338318892,1726494658532,-500.0,0.00019473,2]
[338318893,1726494658541,-500.0,0.00019473,2]
[338318894,1726494658551,-506.65159121,0.00019473,2]
[338318895,1726494658561,-500.0,0.00019473,2]
[338318896,1726494658571,-500.0,0.00019473,2]
[338318897,1726494658581,-500.0,0.00019473,2]
[338318898,1726494658590,-306.93013137,0.00019473,2]
[338318899,1726494658600,-500.0,0.00019473,2]
[338318900,1726494658610,-500.64814825,0.00019473,2]
[338318901,1726494658620,-350.79553298,0.00019473,2]
[338318902,1726494658629,-500.0,0.00019473,2]
[338318903,1726494658639,-151.0,0.00019473,2]
[338318904,1726494658649,-151.0,0.00019473,2]
[338318905,1726494658659,-151.0,0.00019473,2]
[338318906,1726494658669,-106946.08,0.000195,2]
[338318907,1726494658678,-214.0,0.000195,10]
[338318908,1726494658688,-184.929598,0.000195,2]
[338318909,1726494658697,-184.929598,0.000195,2]
[338318910,1726494658707,-151.0,0.000195,2]
[338318911,1726494658716,-151.0,0.000195,2]
[338318912,1726494658725,-160.56293787,0.00019725,2]
[338318913,1726494658737,-2067.45459624,0.00019726,5]
[338318914,1726494658748,-500.0,0.00019726,2]
[338318915,1726494658759,-500.0,0.00019726,2]
[338318916,1726494658769,-500.0,0.00019726,2]
[338318917,1726494658778,-500.0,0.00019726,2]
[338318918,1726494658788,-500.0,0.00019726,2]
[338318919,1726494658798,-577.49552389,0.00019726,2]
[338318920,1726494658807,-500.0,0.00019726,2]
[338318921,1726494658818,-500.0,0.00019726,2]
[338318922,1726494658827,-500.0,0.00019726,2]
[338318923,1726494658837,-998.54,0.00019726,2]
[338318924,1726494658848,-500.0,0.00019726,2]
[338318925,1726494658857,-564.53,0.00019726,2]
[338318926,1726494658866,-500.0,0.00019726,2]
[338318927,1726494658876,-1529.22,0.00019726,2]
[338318928,1726494658886,-500.0,0.00019726,2]
[338318929,1726494658895,-555.20333636,0.00019726,2]
[338318930,1726494658905,-501.16095787,0.00019726,2]
[338318931,1726494658915,-1361.96,0.00019726,2]
[338318932,1726494658925,-500.0,0.00019726,2]
[338318933,1726494658935,-547.63432757,0.00019726,2]
[338318934,1726494658944,-500.0,0.00019726,2]
[338318935,1726494658954,-500.0,0.00019726,2]
[338318936,1726494658963,-500.0,0.00019726,2]
[338318937,1726494658973,-500.0,0.00019726,2]
[338318938,1726494658982,-707.06,0.00019726,2]
[338318939,1726494658992,-500.0,0.00019726,2]
[338318940,1726494659002,-782.15,0.00019726,2]
[338318941,1726494659012,-500.0,0.00019726,2]
[338318942,1726494659022,-600.76,0.00019726,2]
[338318943,1726494659031,-500.0,0.00019726,2]
[338318944,1726494659042,-1830.6,0.00019726,2]
[338318945,1726494659052,-500.0,0.00019726,2]
[338318946,1726494659062,-733.43,0.00019726,2]
[338318947,1726494659074,-500.0,0.00019726,2]
[338318948,1726494659084,-2183.4,0.00019726,2]
[338318949,1726494659093,-500.0,0.00019726,2]
[338318950,1726494659102,-809.81,0.00019726,2]
[338318951,1726494659114,-500.0,0.00019726,2]
[338318952,1726494659124,-500.0,0.00019726,2]
[338318953,1726494659134,-504.11673784,0.00019726,2]
[338318954,1726494659143,-500.0,0.00019726,2]
[338318955,1726494659153,-911.83,0.00019726,2]
[338318956,1726494659163,-1235.98,0.00019726,2]
[338318957,1726494659172,-810.6,0.00019726,2]
[338318958,1726494659182,-500.0,0.00019726,2]
[338318959,1726494659191,-500.0,0.00019726,2]
[338318960,1726494659201,-500.0,0.00019726,2]
[338318961,1726494659210,-1167.48,0.00019726,2]
[338318962,1726494659221,-500.0,0.00019726,2]
[338318963,1726494659230,-515.67,0.00019726,2]
[338318964,1726494659240,-816.42,0.00019726,2]
[338318965,1726494659250,-500.0,0.00019726,2]
[338318966,1726494659260,-630.42,0.00019726,2]
[338318967,1726494659269,-565.91,0.00019726,2]
[338318968,1726494659279,-1034.43,0.00019726,2]
[338318969,1726494659289,-252.41607055,0.00019726,2]
[338318970,1726494659299,-500.0,0.00019726,2]
[338318971,1726494659308,-718.16,0.00019726,2]
[338318972,1726494659319,-539.0,0.00019726,2]
[338318973,1726494659329,-675.01,0.00019726,2]
[338318974,1726494659339,-500.0,0.00019726,2]
[338318975,1726494659348,-1039.54,0.00019726,2]
[338318976,1726494659358,-1457.05,0.00019726,2]
[338318977,1726494659368,-500.0,0.00019726,2]
[338318978,1726494659378,-500.0,0.00019726,2]
[338318979,1726494659388,-500.0,0.00019726,2]
[338318980,1726494659398,-500.0,0.00019726,2]
[338318981,1726494659408,-911.91,0.00019726,2]
[338318982,1726494659417,-500.0,0.00019726,2]
[338318983,1726494659426,-169.07184823,0.00019726,2]
[338318984,1726494659435,-500.0,0.00019726,2]
[338318985,1726494659444,-500.0,0.00019726,2]
[338318986,1726494659454,-500.0,0.00019726,2]
[338318987,1726494659464,-500.0,0.00019726,2]
[338318988,1726494659473,-512.46009983,0.00019726,2]
[338318989,1726494659484,-1104.88,0.00019726,2]
[338318990,1726494659494,-500.0,0.00019726,2]
[338318991,1726494659503,-596.53,0.00019726,2]
[338318992,1726494659513,-500.0,0.00019726,2]
[338318993,1726494659523,-250.0,0.00019726,2]
[338318994,1726494659532,-500.0,0.00019726,2]
[338318995,1726494659542,-500.0,0.00019726,2]
[338318996,1726494659552,-500.0,0.00019726,2]
[338318997,1726494659561,-500.0,0.00019726,2]
[338318998,1726494659571,-500.0,0.00019726,2]
[338318999,1726494659581,-500.0,0.00019726,2]
[338319000,1726494659591,-727.3,0.00019726,2]
[338319001,1726494659601,-500.0,0.00019726,2]
[338319002,1726494659612,-1082.02,0.00019726,2]
[338319003,1726494659622,-500.0,0.00019726,2]
[338319004,1726494659632,-1550.19,0.00019726,2]
[338319005,1726494659643,-500.0,0.00019726,2]
[338319006,1726494659653,-534.23,0.00019726,2]
[338319007,1726494659662,-1144.27,0.00019726,2]
[338319008,1726494659672,-500.0,0.00019726,2]
[338319009,1726494659682,-500.0,0.00019726,2]
[338319010,1726494659691,-500.0,0.00019726,2]
[338319011,1726494659701,-500.0,0.00019726,2]
[338319012,1726494659710,-726.58,0.00019726,2]
[338319013,1726494659720,-500.0,0.00019726,2]
[338319014,1726494659730,-500.0,0.00019726,2]
[338319015,1726494659739,-1161.23,0.00019726,2]
[338319016,1726494659749,-251.962981,0.00019726,2]
[338319017,1726494659759,-251.962981,0.00019726,2]
[338319018,1726494659769,-251.962981,0.00019726,2]
[338319019,1726494659779,-251.962986,0.00019726,2]
[338319020,1726494659789,-500.0,0.00019726,2]
[338319021,1726494659799,-607.08,0.00019726,2]
[338319022,1726494659810,-694.2,0.00019726,2]
[338319023,1726494659822,-683.89,0.00019726,2]
[338319024,1726494659838,-184.929598,0.00019726,2]
[338319025,1726494659848,-500.0,0.00019726,2]
[338319026,1726494659857,-500.0,0.00019726,2]
[338319027,1726494659867,-184.929602,0.00019726,2]
[338319028,1726494659876,-500.0,0.00019726,2]
[338319029,1726494659886,-2686.11,0.00019726,2]
[338319030,1726494659895,-500.0,0.00019726,2]
[338319031,1726494659905,-672.03,0.00019726,2]
[338319032,1726494659914,-500.0,0.00019726,2]
[338319033,1726494659924,-574.85276769,0.00019726,2]
[338319034,1726494659934,-500.0,0.00019726,2]
[338319035,1726494659944,-500.0,0.00019726,2]